[Event "Titled Tuesday Blitz May 03 Late 2022"]
[White "Simonovic, Miroslav"]
[Black "Yurovskykh, Oleksandr"]
[WhiteFideId "919152"]
[BlackFideId "14134020"]
[WhiteElo "2043"]
[BlackElo "2292"]
[Result "1-0"]
[Round "09"]
[TimeControl "180+1"]
[Date "2022.05.03"]
[WhiteClock "0:00:12"]
[BlackClock "0:00:01"]

1. d4 {[%clk 0:03:00]}  d5 {[%clk 0:02:57]} 2. Bg5 {[%clk 0:03:01]}  h6 {[%clk 0:02:53]} 3. Bh4 {[%clk 0:03:01]}  Nf6 {[%clk 0:02:52]} 4. Bxf6 {[%clk 0:03:01]}  exf6 {[%clk 0:02:53]} 5. e3 {[%clk 0:03:02]}  Be7 {[%clk 0:02:53]} 6. a3 {[%clk 0:03:01]}  O-O {[%clk 0:02:52]} 7. c4 {[%clk 0:03:01]}  c6 {[%clk 0:02:52]} 8. Nc3 {[%clk 0:03:00]}  Be6 {[%clk 0:02:50]} 9. cxd5 {[%clk 0:03:00]}  Bxd5 {[%clk 0:02:48]} 10. Nxd5 {[%clk 0:02:59]}  Qxd5 {[%clk 0:02:47]} 11. Ne2 {[%clk 0:02:57]}  Qa5+ {[%clk 0:02:26]} 12. Nc3 {[%clk 0:02:57]}  Nd7 {[%clk 0:02:20]} 13. b4 {[%clk 0:02:56]}  Qc7 {[%clk 0:02:16]} 14. g3 {[%clk 0:02:54]}  Nb6 {[%clk 0:02:08]} 15. Bg2 {[%clk 0:02:54]}  Rad8 {[%clk 0:02:03]} 16. O-O {[%clk 0:02:53]}  Rfe8 {[%clk 0:02:03]} 17. Qc2 {[%clk 0:02:51]}  Qd7 {[%clk 0:01:42]} 18. Rfc1 {[%clk 0:02:42]}  Bd6 {[%clk 0:01:32]} 19. Ne4 {[%clk 0:02:37]}  Bb8 {[%clk 0:01:21]} 20. Nc5 {[%clk 0:02:20]}  Qe7 {[%clk 0:01:21]} 21. Nxb7 {[%clk 0:02:12]}  Qxb7 {[%clk 0:01:17]} 22. Bxc6 {[%clk 0:02:12]}  Qe7 {[%clk 0:01:15]} 23. Bxe8 {[%clk 0:02:12]}  Rxe8 {[%clk 0:01:16]} 24. Qc5 {[%clk 0:02:07]}  Qe4 {[%clk 0:01:10]} 25. Qc6 {[%clk 0:02:06]}  Qe7 {[%clk 0:00:58]} 26. a4 {[%clk 0:01:58]}  Rd8 {[%clk 0:00:43]} 27. a5 {[%clk 0:01:47]}  Nd5 {[%clk 0:00:41]} 28. b5 {[%clk 0:01:27]}  Nb4 {[%clk 0:00:37]} 29. Qc5 {[%clk 0:01:18]}  Bd6 {[%clk 0:00:37]} 30. Qf5 {[%clk 0:01:07]}  g6 {[%clk 0:00:28]} 31. Qh3 {[%clk 0:01:01]}  Kg7 {[%clk 0:00:27]} 32. Rc8 {[%clk 0:01:00]}  Rd7 {[%clk 0:00:18]} 33. b6 {[%clk 0:00:47]}  axb6 {[%clk 0:00:18]} 34. axb6 {[%clk 0:00:48]}  Rb7 {[%clk 0:00:18]} 35. Raa8 {[%clk 0:00:40]}  f5 {[%clk 0:00:07]} 36. Rg8+ {[%clk 0:00:33]}  Kf6 {[%clk 0:00:06]} 37. Qxh6 {[%clk 0:00:33]}  Rxb6 {[%clk 0:00:03]} 38. Qg7+ {[%clk 0:00:31]}  Ke6 {[%clk 0:00:04]} 39. Rae8 {[%clk 0:00:30]}  Nd5 {[%clk 0:00:02]} 40. Rxe7+ {[%clk 0:00:30]}  Nxe7 {[%clk 0:00:03]} 41. Rf8 {[%clk 0:00:23]}  Rb1+ {[%clk 0:00:02]} 42. Kg2 {[%clk 0:00:23]}  f4 {[%clk 0:00:02]} 43. Qxf7+ {[%clk 0:00:23]}  Kd7 {[%clk 0:00:02]} 44. gxf4 {[%clk 0:00:22]}  Kc7 {[%clk 0:00:01]} 45. Re8 {[%clk 0:00:17]}  Kd7 {[%clk 0:00:01]} 46. Rg8 {[%clk 0:00:14]}  Rb2 {[%clk 0:00:01]} 47. Rxg6 {[%clk 0:00:13]}  Kc6 {[%clk 0:00:01]} 48. Re6 {[%clk 0:00:12]} 1-0


[Site "https://www.chess.com"]

[Event "Titled Tuesday Blitz May 03 Late 2022"]
[White "Smail, Benedict"]
[Black "Gurevich, Dmitry"]
[WhiteFideId "2050480"]
[BlackFideId "2000407"]
[WhiteElo "2070"]
[BlackElo "2506"]
[Result "1-0"]
[Round "09"]
[TimeControl "180+1"]
[Date "2022.05.03"]
[WhiteClock "0:00:07"]
[BlackClock "0:00:19"]

1. d4 {[%clk 0:03:00]}  Nf6 {[%clk 0:02:50]} 2. c4 {[%clk 0:03:00]}  a6 {[%clk 0:02:50]} 3. g3 {[%clk 0:02:57]}  c5 {[%clk 0:02:50]} 4. d5 {[%clk 0:02:55]}  b5 {[%clk 0:02:49]} 5. Bg2 {[%clk 0:02:51]}  d6 {[%clk 0:02:49]} 6. Nf3 {[%clk 0:02:43]}  g6 {[%clk 0:02:49]} 7. O-O {[%clk 0:02:43]}  Bg7 {[%clk 0:02:49]} 8. Nc3 {[%clk 0:02:39]}  b4 {[%clk 0:02:48]} 9. Na4 {[%clk 0:02:26]}  Bd7 {[%clk 0:02:48]} 10. Rb1 {[%clk 0:02:17]}  Qa5 {[%clk 0:02:46]} 11. b3 {[%clk 0:02:17]}  Bxa4 {[%clk 0:02:46]} 12. bxa4 {[%clk 0:02:17]}  Ne4 {[%clk 0:02:46]} 13. Bd2 {[%clk 0:02:05]}  Nc3 {[%clk 0:02:45]} 14. Bxc3 {[%clk 0:02:05]}  Bxc3 {[%clk 0:02:40]} 15. Bh3 {[%clk 0:01:40]}  O-O {[%clk 0:02:39]} 16. Qc2 {[%clk 0:01:39]}  Ra7 {[%clk 0:02:36]} 17. Rfc1 {[%clk 0:01:37]}  Nd7 {[%clk 0:02:35]} 18. Bxd7 {[%clk 0:01:36]}  Rxd7 {[%clk 0:02:34]} 19. a3 {[%clk 0:01:27]}  Bf6 {[%clk 0:02:32]} 20. axb4 {[%clk 0:01:23]}  cxb4 {[%clk 0:02:32]} 21. Qb3 {[%clk 0:01:16]}  Rb8 {[%clk 0:02:31]} 22. Nd2 {[%clk 0:01:12]}  Rc7 {[%clk 0:02:30]} 23. Ne4 {[%clk 0:01:09]}  Bd4 {[%clk 0:02:30]} 24. e3 {[%clk 0:01:08]}  Bg7 {[%clk 0:02:28]} 25. h4 {[%clk 0:01:04]}  h6 {[%clk 0:02:28]} 26. Rc2 {[%clk 0:00:58]}  f5 {[%clk 0:02:27]} 27. Nd2 {[%clk 0:00:58]}  Rcb7 {[%clk 0:02:27]} 28. h5 {[%clk 0:00:51]}  g5 {[%clk 0:02:25]} 29. Rbc1 {[%clk 0:00:48]}  Bc3 {[%clk 0:02:21]} 30. Nb1 {[%clk 0:00:49]}  Bf6 {[%clk 0:02:19]} 31. c5 {[%clk 0:00:46]}  dxc5 {[%clk 0:02:17]} 32. d6+ {[%clk 0:00:45]}  Kg7 {[%clk 0:02:16]} 33. Rxc5 {[%clk 0:00:43]}  Qd8 {[%clk 0:02:14]} 34. dxe7 {[%clk 0:00:37]}  Qxe7 {[%clk 0:02:14]} 35. Rxf5 {[%clk 0:00:35]}  Rd8 {[%clk 0:02:08]} 36. Rd5 {[%clk 0:00:30]}  Rbd7 {[%clk 0:02:06]} 37. Rcd1 {[%clk 0:00:29]}  Rxd5 {[%clk 0:02:05]} 38. Rxd5 {[%clk 0:00:29]}  Rc8 {[%clk 0:01:54]} 39. Nd2 {[%clk 0:00:21]}  Rc1+ {[%clk 0:01:52]} 40. Kg2 {[%clk 0:00:21]}  g4 {[%clk 0:01:48]} 41. Qd3 {[%clk 0:00:21]}  Rc7 {[%clk 0:01:46]} 42. Qg6+ {[%clk 0:00:16]}  Kf8 {[%clk 0:01:45]} 43. Rf5 {[%clk 0:00:16]}  Rc6 {[%clk 0:01:44]} 44. e4 {[%clk 0:00:13]}  Qg7 {[%clk 0:00:57]} 45. e5 {[%clk 0:00:13]}  Qxg6 {[%clk 0:00:58]} 46. hxg6 {[%clk 0:00:13]}  Kg7 {[%clk 0:00:56]} 47. exf6+ {[%clk 0:00:12]}  Rxf6 {[%clk 0:00:56]} 48. Rxf6 {[%clk 0:00:11]}  Kxf6 {[%clk 0:00:55]} 49. f4 {[%clk 0:00:11]}  gxf3+ {[%clk 0:00:49]} 50. Kxf3 {[%clk 0:00:11]}  Kxg6 {[%clk 0:00:49]} 51. Kg4 {[%clk 0:00:12]}  Kf6 {[%clk 0:00:45]} 52. Kh5 {[%clk 0:00:10]}  Kg7 {[%clk 0:00:44]} 53. Nb3 {[%clk 0:00:09]}  Kh7 {[%clk 0:00:43]} 54. Nd4 {[%clk 0:00:09]}  Kg7 {[%clk 0:00:43]} 55. a5 {[%clk 0:00:09]}  Kh7 {[%clk 0:00:41]} 56. g4 {[%clk 0:00:10]}  Kg7 {[%clk 0:00:41]} 57. Kh4 {[%clk 0:00:10]}  Kf6 {[%clk 0:00:40]} 58. Kg3 {[%clk 0:00:10]}  Kg5 {[%clk 0:00:38]} 59. Kf3 {[%clk 0:00:09]}  Kf6 {[%clk 0:00:34]} 60. Kf4 {[%clk 0:00:09]}  Kg6 {[%clk 0:00:33]} 61. Nb3 {[%clk 0:00:08]}  Kf6 {[%clk 0:00:33]} 62. Nc5 {[%clk 0:00:07]}  Ke7 {[%clk 0:00:32]} 63. Nb3 {[%clk 0:00:05]}  Kd6 {[%clk 0:00:32]} 64. Kf5 {[%clk 0:00:04]}  Kd5 {[%clk 0:00:31]} 65. Kg6 {[%clk 0:00:04]}  Kc4 {[%clk 0:00:32]} 66. Nc1 {[%clk 0:00:05]}  Kd4 {[%clk 0:00:24]} 67. Kxh6 {[%clk 0:00:05]}  Ke3 {[%clk 0:00:25]} 68. g5 {[%clk 0:00:05]}  Kd2 {[%clk 0:00:26]} 69. Nb3+ {[%clk 0:00:05]}  Kc3 {[%clk 0:00:26]} 70. Nc5 {[%clk 0:00:06]}  Kc4 {[%clk 0:00:26]} 71. Na4 {[%clk 0:00:06]}  Kb3 {[%clk 0:00:25]} 72. Nb6 {[%clk 0:00:07]}  Ka3 {[%clk 0:00:19]} 73. g6 {[%clk 0:00:06]}  b3 {[%clk 0:00:19]} 74. g7 {[%clk 0:00:07]}  Kb4 {[%clk 0:00:19]} 75. g8=Q {[%clk 0:00:07]}  b2 {[%clk 0:00:19]} 76. Qa2 {[%clk 0:00:07]}  Kc3 {[%clk 0:00:19]} 77. Qb1 {[%clk 0:00:07]} 1-0


[Site "https://www.chess.com"]

[Event "Titled Tuesday Blitz May 03 Late 2022"]
[White "Svane, Rasmus"]
[Black "Demchenko, Anton"]
[WhiteFideId "4657101"]
[BlackFideId "4160258"]
[WhiteElo "2645"]
[BlackElo "2539"]
[Result "0-1"]
[Round "09"]
[TimeControl "180+1"]
[Date "2022.05.03"]
[WhiteClock "0:00:03"]
[BlackClock "0:00:04"]

1. Nf3 {[%clk 0:03:00]}  Nf6 {[%clk 0:02:56]} 2. g3 {[%clk 0:03:01]}  g6 {[%clk 0:02:55]} 3. Bg2 {[%clk 0:03:01]}  Bg7 {[%clk 0:02:56]} 4. O-O {[%clk 0:03:02]}  O-O {[%clk 0:02:57]} 5. d4 {[%clk 0:03:02]}  d6 {[%clk 0:02:57]} 6. Re1 {[%clk 0:03:03]}  Nbd7 {[%clk 0:02:57]} 7. e4 {[%clk 0:03:03]}  e5 {[%clk 0:02:57]} 8. Nc3 {[%clk 0:03:04]}  b6 {[%clk 0:02:58]} 9. Be3 {[%clk 0:02:56]}  Bb7 {[%clk 0:02:58]} 10. dxe5 {[%clk 0:02:57]}  dxe5 {[%clk 0:02:58]} 11. Nd2 {[%clk 0:02:57]}  Qe7 {[%clk 0:02:12]} 12. Qe2 {[%clk 0:02:56]}  c6 {[%clk 0:02:04]} 13. a4 {[%clk 0:02:55]}  a5 {[%clk 0:01:58]} 14. Red1 {[%clk 0:02:49]}  Ba6 {[%clk 0:01:57]} 15. Qe1 {[%clk 0:02:46]}  Ng4 {[%clk 0:01:55]} 16. Bf1 {[%clk 0:02:41]}  Bxf1 {[%clk 0:01:49]} 17. Nxf1 {[%clk 0:02:42]}  f5 {[%clk 0:01:37]} 18. Qd2 {[%clk 0:02:17]}  Rad8 {[%clk 0:01:05]} 19. exf5 {[%clk 0:01:40]}  gxf5 {[%clk 0:00:54]} 20. Qd6 {[%clk 0:01:39]}  Qxd6 {[%clk 0:00:47]} 21. Rxd6 {[%clk 0:01:40]}  f4 {[%clk 0:00:48]} 22. Bd2 {[%clk 0:01:06]}  Nc5 {[%clk 0:00:37]} 23. Rxc6 {[%clk 0:01:00]}  fxg3 {[%clk 0:00:36]} 24. fxg3 {[%clk 0:00:51]}  e4 {[%clk 0:00:36]} 25. Re1 {[%clk 0:00:51]}  Ne5 {[%clk 0:00:13]} 26. Rxc5 {[%clk 0:00:36]}  Nf3+ {[%clk 0:00:12]} 27. Kh1 {[%clk 0:00:30]}  Nxe1 {[%clk 0:00:12]} 28. Bxe1 {[%clk 0:00:16]}  Rxf1+ {[%clk 0:00:12]} 29. Kg2 {[%clk 0:00:16]}  Rxe1 {[%clk 0:00:13]} 30. Rg5 {[%clk 0:00:13]}  h6 {[%clk 0:00:09]} 31. Rg4 {[%clk 0:00:12]}  Rd2+ {[%clk 0:00:06]} 32. Kh3 {[%clk 0:00:13]}  Rxc2 {[%clk 0:00:03]} 33. Nxe4 {[%clk 0:00:13]}  Kh7 {[%clk 0:00:04]} 34. Nd6 {[%clk 0:00:08]}  Ree2 {[%clk 0:00:04]} 35. Rf4 {[%clk 0:00:05]}  Rxh2+ {[%clk 0:00:04]} 36. Kg4 {[%clk 0:00:06]}  h5+ {[%clk 0:00:04]} 37. Kf5 {[%clk 0:00:06]}  Rhf2 {[%clk 0:00:05]} 38. Ne4 {[%clk 0:00:05]}  Rxf4+ {[%clk 0:00:05]} 39. gxf4 {[%clk 0:00:06]}  Rxb2 {[%clk 0:00:05]} 40. Ng5+ {[%clk 0:00:07]}  Kg8 {[%clk 0:00:05]} 41. Kg6 {[%clk 0:00:08]}  Rf2 {[%clk 0:00:05]} 42. f5 {[%clk 0:00:07]}  h4 {[%clk 0:00:05]} 43. Ne4 {[%clk 0:00:03]}  Rf3 {[%clk 0:00:04]} 44. Ng5 {[%clk 0:00:03]}  Rf1 {[%clk 0:00:04]} 45. Ne4 {[%clk 0:00:03]}  h3 {[%clk 0:00:04]} 46. f6 {[%clk 0:00:03]}  Bxf6 {[%clk 0:00:04]} 0-1


[Site "https://www.chess.com"]

[Event "Titled Tuesday Blitz May 03 Late 2022"]
[White "Vasquez Schroeder, Rodrigo"]
[Black "Deac, Bogdan-Daniel"]
[WhiteFideId "3400042"]
[BlackFideId "1226380"]
[WhiteElo "2561"]
[BlackElo "2648"]
[Result "1-0"]
[Round "09"]
[TimeControl "180+1"]
[Date "2022.05.03"]
[WhiteClock "0:00:44"]
[BlackClock "0:00:03"]

1. e4 {[%clk 0:03:00]}  e5 {[%clk 0:03:00]} 2. Nf3 {[%clk 0:03:00]}  Nf6 {[%clk 0:03:00]} 3. d3 {[%clk 0:02:53]}  Nc6 {[%clk 0:02:59]} 4. c3 {[%clk 0:02:52]}  d5 {[%clk 0:02:59]} 5. Nbd2 {[%clk 0:02:52]}  a5 {[%clk 0:02:59]} 6. Be2 {[%clk 0:02:52]}  g6 {[%clk 0:02:59]} 7. O-O {[%clk 0:02:52]}  Bg7 {[%clk 0:03:00]} 8. Re1 {[%clk 0:02:52]}  O-O {[%clk 0:02:59]} 9. Bf1 {[%clk 0:02:53]}  Re8 {[%clk 0:02:58]} 10. b3 {[%clk 0:02:53]}  d4 {[%clk 0:02:43]} 11. cxd4 {[%clk 0:02:49]}  Nxd4 {[%clk 0:02:43]} 12. Nxd4 {[%clk 0:02:39]}  Qxd4 {[%clk 0:02:42]} 13. Rb1 {[%clk 0:02:39]}  Qd8 {[%clk 0:01:29]} 14. Bb2 {[%clk 0:02:34]}  Nd7 {[%clk 0:01:29]} 15. Nf3 {[%clk 0:02:31]}  Nc5 {[%clk 0:01:24]} 16. h3 {[%clk 0:02:27]}  Qd6 {[%clk 0:01:14]} 17. Qc2 {[%clk 0:02:18]}  Ne6 {[%clk 0:01:12]} 18. Qc4 {[%clk 0:01:53]}  Rd8 {[%clk 0:00:34]} 19. Rbc1 {[%clk 0:01:40]}  c5 {[%clk 0:00:32]} 20. g3 {[%clk 0:01:33]}  b6 {[%clk 0:00:29]} 21. Red1 {[%clk 0:01:33]}  Ba6 {[%clk 0:00:24]} 22. Qc2 {[%clk 0:01:33]}  Bb7 {[%clk 0:00:24]} 23. Qc3 {[%clk 0:01:29]}  f6 {[%clk 0:00:22]} 24. Bg2 {[%clk 0:01:25]}  Bh6 {[%clk 0:00:21]} 25. Rc2 {[%clk 0:01:21]}  Rac8 {[%clk 0:00:20]} 26. Qe1 {[%clk 0:01:10]}  Kg7 {[%clk 0:00:17]} 27. h4 {[%clk 0:01:07]}  Nd4 {[%clk 0:00:15]} 28. Nxd4 {[%clk 0:01:03]}  cxd4 {[%clk 0:00:16]} 29. Re2 {[%clk 0:01:03]}  Rc7 {[%clk 0:00:15]} 30. Bh3 {[%clk 0:01:03]}  Bc8 {[%clk 0:00:14]} 31. Qf1 {[%clk 0:01:03]}  Bxh3 {[%clk 0:00:11]} 32. Qxh3 {[%clk 0:01:04]}  Rdc8 {[%clk 0:00:12]} 33. Rde1 {[%clk 0:00:58]}  Rc2 {[%clk 0:00:10]} 34. Qg4 {[%clk 0:00:58]}  Bd2 {[%clk 0:00:08]} 35. Rxd2 {[%clk 0:00:56]}  Rxd2 {[%clk 0:00:06]} 36. Qxc8 {[%clk 0:00:57]}  Rxb2 {[%clk 0:00:06]} 37. Rc1 {[%clk 0:00:53]}  Qb4 {[%clk 0:00:06]} 38. Qd8 {[%clk 0:00:44]}  Qd2 {[%clk 0:00:03]} 39. Rc7+ {[%clk 0:00:43]}  Kh6 {[%clk 0:00:03]} 40. Qxf6 {[%clk 0:00:44]} 1-0


[Site "https://www.chess.com"]

[Event "Titled Tuesday Blitz May 03 Late 2022"]
[White "Vlassov, Nikolai"]
[Black "Vovk, Orest"]
[WhiteFideId "4103360"]
[BlackFideId "14113490"]
[WhiteElo "2407"]
[BlackElo "2203"]
[Result "1-0"]
[Round "09"]
[TimeControl "180+1"]
[Date "2022.05.03"]
[WhiteClock "0:00:15"]
[BlackClock "0:00:04"]

1. g4 {[%clk 0:03:00]}  d5 {[%clk 0:02:57]} 2. Bg2 {[%clk 0:03:00]}  Bxg4 {[%clk 0:02:55]} 3. c4 {[%clk 0:03:00]}  d4 {[%clk 0:02:55]} 4. Bxb7 {[%clk 0:02:59]}  Nd7 {[%clk 0:02:55]} 5. Bxa8 {[%clk 0:03:00]}  Qxa8 {[%clk 0:02:55]} 6. f3 {[%clk 0:03:00]}  d3 {[%clk 0:02:56]} 7. Nc3 {[%clk 0:02:57]}  Ngf6 {[%clk 0:02:54]} 8. exd3 {[%clk 0:02:50]}  e6 {[%clk 0:02:49]} 9. Ne4 {[%clk 0:02:45]}  Bh5 {[%clk 0:02:33]} 10. Qa4 {[%clk 0:02:39]}  Bxf3 {[%clk 0:02:17]} 11. Nxf3 {[%clk 0:02:03]}  Nxe4 {[%clk 0:02:16]} 12. dxe4 {[%clk 0:02:03]}  Qxe4+ {[%clk 0:02:16]} 13. Kf2 {[%clk 0:02:03]}  Bc5+ {[%clk 0:02:06]} 14. d4 {[%clk 0:02:02]}  Bxd4+ {[%clk 0:02:05]} 15. Nxd4 {[%clk 0:01:58]}  Qxd4+ {[%clk 0:02:06]} 16. Be3 {[%clk 0:01:55]}  Qxb2+ {[%clk 0:02:05]} 17. Kf3 {[%clk 0:01:47]}  Qf6+ {[%clk 0:01:49]} 18. Ke2 {[%clk 0:01:42]}  Qb2+ {[%clk 0:01:46]} 19. Kd3 {[%clk 0:01:38]}  Ke7 {[%clk 0:01:34]} 20. Rab1 {[%clk 0:01:34]}  Ne5+ {[%clk 0:01:29]} 21. Ke4 {[%clk 0:01:32]}  f5+ {[%clk 0:01:19]} 22. Kf4 {[%clk 0:01:30]}  g5+ {[%clk 0:00:54]} 23. Kg3 {[%clk 0:01:26]}  f4+ {[%clk 0:00:53]} 24. Kh3 {[%clk 0:01:20]}  g4+ {[%clk 0:00:49]} 25. Kh4 {[%clk 0:01:20]}  Ng6+ {[%clk 0:00:36]} 26. Kh5 {[%clk 0:01:10]}  Qe5+ {[%clk 0:00:27]} 27. Kh6 {[%clk 0:01:01]}  Kf6 {[%clk 0:00:16]} 28. Bd4 {[%clk 0:00:52]}  Qxd4 {[%clk 0:00:16]} 29. Qb5 {[%clk 0:00:47]}  e5 {[%clk 0:00:08]} 30. Rhd1 {[%clk 0:00:35]}  Qe3 {[%clk 0:00:07]} 31. Qc6+ {[%clk 0:00:34]}  Kf7 {[%clk 0:00:04]} 32. Rd7+ {[%clk 0:00:31]}  Ne7 {[%clk 0:00:03]} 33. Rxe7+ {[%clk 0:00:22]}  Kxe7 {[%clk 0:00:04]} 34. Qxc7+ {[%clk 0:00:22]}  Kf6 {[%clk 0:00:04]} 35. Qd6+ {[%clk 0:00:23]}  Kf5 {[%clk 0:00:04]} 36. Qd7+ {[%clk 0:00:20]}  Ke4 {[%clk 0:00:02]} 37. Kg7 {[%clk 0:00:17]}  Ra8 {[%clk 0:00:01]} 38. Qd5+ {[%clk 0:00:16]}  Kf5 {[%clk 0:00:01]} 39. Qxa8 {[%clk 0:00:16]}  Qc3 {[%clk 0:00:01]} 40. Qc8+ {[%clk 0:00:14]}  Ke4 {[%clk 0:00:01]} 41. Qxg4 {[%clk 0:00:14]}  Qc2 {[%clk 0:00:01]} 42. Kxh7 {[%clk 0:00:13]}  Kd4+ {[%clk 0:00:02]} 43. Qg6 {[%clk 0:00:13]}  Qxg6+ {[%clk 0:00:01]} 44. Kxg6 {[%clk 0:00:13]}  f3 {[%clk 0:00:02]} 45. h4 {[%clk 0:00:14]}  f2 {[%clk 0:00:02]} 46. h5 {[%clk 0:00:14]}  e4 {[%clk 0:00:02]} 47. h6 {[%clk 0:00:15]}  e3 {[%clk 0:00:03]} 48. h7 {[%clk 0:00:15]}  e2 {[%clk 0:00:04]} 49. h8=Q+ {[%clk 0:00:15]}  Kd3 {[%clk 0:00:04]} 50. Rb3+ {[%clk 0:00:15]}  Kd2 {[%clk 0:00:05]} 51. Qd4+ {[%clk 0:00:15]}  Kc2 {[%clk 0:00:04]} 52. Qd3+ {[%clk 0:00:15]} 1-0


[Site "https://www.chess.com"]

[Event "Titled Tuesday Blitz May 03 Late 2022"]
[White "Vusatiuk, Vladimir"]
[Black "Zhou, Qiyu"]
[WhiteFideId "14118610"]
[BlackFideId "505161"]
[WhiteElo "2157"]
[BlackElo "1925"]
[Result "1-0"]
[Round "09"]
[TimeControl "180+1"]
[Date "2022.05.03"]
[WhiteClock "0:00:16"]
[BlackClock "0:00:01"]

1. d4 {[%clk 0:03:00]}  Nf6 {[%clk 0:02:57]} 2. c4 {[%clk 0:02:58]}  e6 {[%clk 0:02:55]} 3. Nc3 {[%clk 0:02:58]}  Bb4 {[%clk 0:02:54]} 4. e3 {[%clk 0:02:58]}  d5 {[%clk 0:02:54]} 5. Nf3 {[%clk 0:02:55]}  O-O {[%clk 0:02:54]} 6. Bd2 {[%clk 0:02:55]}  c5 {[%clk 0:02:41]} 7. a3 {[%clk 0:02:55]}  Bxc3 {[%clk 0:02:29]} 8. Bxc3 {[%clk 0:02:56]}  cxd4 {[%clk 0:02:29]} 9. Nxd4 {[%clk 0:02:47]}  Nc6 {[%clk 0:02:27]} 10. cxd5 {[%clk 0:02:41]}  Nxd5 {[%clk 0:02:24]} 11. Nxc6 {[%clk 0:02:39]}  bxc6 {[%clk 0:02:25]} 12. Bd4 {[%clk 0:02:03]}  Re8 {[%clk 0:02:04]} 13. Bc4 {[%clk 0:01:51]}  e5 {[%clk 0:02:01]} 14. Bc5 {[%clk 0:01:51]}  Be6 {[%clk 0:02:01]} 15. O-O {[%clk 0:01:40]}  Nxe3 {[%clk 0:01:08]} 16. Qxd8 {[%clk 0:01:02]}  Rexd8 {[%clk 0:00:58]} 17. Bxe3 {[%clk 0:00:44]}  Bxc4 {[%clk 0:00:57]} 18. Rfc1 {[%clk 0:00:43]}  Bd5 {[%clk 0:00:57]} 19. b4 {[%clk 0:00:40]}  Rdb8 {[%clk 0:00:48]} 20. Rc5 {[%clk 0:00:37]}  Rb5 {[%clk 0:00:35]} 21. Rac1 {[%clk 0:00:37]}  a5 {[%clk 0:00:19]} 22. Rxb5 {[%clk 0:00:36]}  cxb5 {[%clk 0:00:20]} 23. bxa5 {[%clk 0:00:36]}  Bc4 {[%clk 0:00:21]} 24. Bb6 {[%clk 0:00:36]}  f5 {[%clk 0:00:16]} 25. f3 {[%clk 0:00:35]}  Kf7 {[%clk 0:00:16]} 26. Rd1 {[%clk 0:00:35]}  Ke6 {[%clk 0:00:17]} 27. Kf2 {[%clk 0:00:31]}  Bd5 {[%clk 0:00:16]} 28. Rc1 {[%clk 0:00:28]}  Bc4 {[%clk 0:00:15]} 29. Ke3 {[%clk 0:00:29]}  g6 {[%clk 0:00:13]} 30. h4 {[%clk 0:00:28]}  f4+ {[%clk 0:00:07]} 31. Kf2 {[%clk 0:00:28]}  Kd5 {[%clk 0:00:04]} 32. Rd1+ {[%clk 0:00:28]}  Kc6 {[%clk 0:00:05]} 33. g3 {[%clk 0:00:24]}  Re8 {[%clk 0:00:04]} 34. Re1 {[%clk 0:00:19]}  fxg3+ {[%clk 0:00:05]} 35. Kxg3 {[%clk 0:00:19]}  Kd5 {[%clk 0:00:05]} 36. a6 {[%clk 0:00:19]}  Kc6 {[%clk 0:00:04]} 37. Be3 {[%clk 0:00:18]}  Ra8 {[%clk 0:00:01]} 38. a7 {[%clk 0:00:18]}  Kb7 {[%clk 0:00:01]} 39. Rd1 {[%clk 0:00:18]}  Re8 {[%clk 0:00:01]} 40. Rd7+ {[%clk 0:00:18]}  Ka8 {[%clk 0:00:02]} 41. Rxh7 {[%clk 0:00:19]}  e4 {[%clk 0:00:02]} 42. fxe4 {[%clk 0:00:19]}  b4 {[%clk 0:00:01]} 43. axb4 {[%clk 0:00:19]}  Ba6 {[%clk 0:00:02]} 44. e5 {[%clk 0:00:17]}  Bb7 {[%clk 0:00:01]} 45. Kf4 {[%clk 0:00:17]}  Rf8+ {[%clk 0:00:02]} 46. Kg5 {[%clk 0:00:18]}  Re8 {[%clk 0:00:01]} 47. Kf6 {[%clk 0:00:16]} 1-0


[Site "https://www.chess.com"]

[Event "Titled Tuesday Blitz May 03 Late 2022"]
[White "Zhang, Derek"]
[Black "Wagner, Dennis"]
[WhiteFideId "2087871"]
[BlackFideId "24650684"]
[WhiteElo "2085"]
[BlackElo "2355"]
[Result "0-1"]
[Round "09"]
[TimeControl "180+1"]
[Date "2022.05.03"]
[WhiteClock "0:00:04"]
[BlackClock "0:01:38"]

1. Nf3 {[%clk 0:03:00]}  c5 {[%clk 0:02:56]} 2. c4 {[%clk 0:03:01]}  Nc6 {[%clk 0:02:53]} 3. e3 {[%clk 0:03:02]}  Nf6 {[%clk 0:02:51]} 4. Nc3 {[%clk 0:03:02]}  g6 {[%clk 0:02:50]} 5. d4 {[%clk 0:03:00]}  cxd4 {[%clk 0:02:50]} 6. exd4 {[%clk 0:03:01]}  d5 {[%clk 0:02:51]} 7. Bg5 {[%clk 0:03:01]}  Be6 {[%clk 0:02:39]} 8. Be2 {[%clk 0:02:51]}  Bg7 {[%clk 0:02:32]} 9. O-O {[%clk 0:02:51]}  O-O {[%clk 0:02:32]} 10. b3 {[%clk 0:02:48]}  Ne4 {[%clk 0:02:25]} 11. Nxd5 {[%clk 0:01:11]}  Nxg5 {[%clk 0:01:55]} 12. Nxg5 {[%clk 0:01:12]}  Nxd4 {[%clk 0:01:56]} 13. Nf4 {[%clk 0:00:15]}  Bf5 {[%clk 0:01:42]} 14. Rc1 {[%clk 0:00:15]}  Bh6 {[%clk 0:01:38]} 15. h4 {[%clk 0:00:11]}  f6 {[%clk 0:01:38]} 16. Ngh3 {[%clk 0:00:05]}  Bxh3 {[%clk 0:01:38]} 17. Nxh3 {[%clk 0:00:04]}  Bxc1 {[%clk 0:01:38]} 0-1


[Site "https://www.chess.com"]